[Event "Titled Tuesday Blitz July 11 Early 2023"]
[White "brm72"]
[Black "djokovic74"]
[WhiteElo "2534"]
[BlackElo "2689"]
[Result "0-1"]
[Round "11"]
[TimeControl "180+2"]
[Date "2023.07.11"]
[WhiteClock "0:00:24"]
[BlackClock "0:00:09"]
[Board "59"]

1. e4 {[%clk 0:03:00]}  e6 {[%clk 0:02:58]} 2. d4 {[%clk 0:03:00]}  d5 {[%clk 0:02:59]} 3. e5 {[%clk 0:03:01]}  c5 {[%clk 0:02:59]} 4. c3 {[%clk 0:03:01]}  Nc6 {[%clk 0:03:00]} 5. Nf3 {[%clk 0:03:02]}  Nge7 {[%clk 0:03:00]} 6. Na3 {[%clk 0:02:58]}  cxd4 {[%clk 0:03:00]} 7. cxd4 {[%clk 0:02:58]}  Nf5 {[%clk 0:03:01]} 8. Nc2 {[%clk 0:02:59]}  Qb6 {[%clk 0:03:02]} 9. Bd3 {[%clk 0:02:58]}  Bd7 {[%clk 0:02:58]} 10. Bxf5 {[%clk 0:02:52]}  exf5 {[%clk 0:02:58]} 11. O-O {[%clk 0:02:52]}  Be6 {[%clk 0:02:57]} 12. a3 {[%clk 0:02:41]}  h6 {[%clk 0:02:56]} 13. h4 {[%clk 0:02:40]}  Be7 {[%clk 0:02:56]} 14. h5 {[%clk 0:02:40]}  O-O {[%clk 0:02:54]} 15. Be3 {[%clk 0:02:40]}  Na5 {[%clk 0:02:53]} 16. Nce1 {[%clk 0:02:39]}  Nb3 {[%clk 0:02:46]} 17. Rb1 {[%clk 0:02:38]}  f4 {[%clk 0:02:46]} 18. Bxf4 {[%clk 0:02:36]}  Bf5 {[%clk 0:02:41]} 19. Nd3 {[%clk 0:02:33]}  Bg4 {[%clk 0:02:41]} 20. Nde1 {[%clk 0:02:27]}  Rac8 {[%clk 0:02:21]} 21. Qe2 {[%clk 0:02:15]}  Nxd4 {[%clk 0:02:05]} 22. Qe3 {[%clk 0:02:14]}  Nxf3+ {[%clk 0:01:54]} 23. Nxf3 {[%clk 0:02:11]}  Bxh5 {[%clk 0:01:54]} 24. Qxb6 {[%clk 0:02:10]}  axb6 {[%clk 0:01:55]} 25. Nd4 {[%clk 0:02:10]}  Bg6 {[%clk 0:01:53]} 26. Rbc1 {[%clk 0:02:10]}  Bc5 {[%clk 0:01:50]} 27. Be3 {[%clk 0:02:10]}  Rfe8 {[%clk 0:01:45]} 28. f4 {[%clk 0:02:08]}  Be4 {[%clk 0:01:40]} 29. b4 {[%clk 0:02:08]}  Bxd4 {[%clk 0:01:25]} 30. Bxd4 {[%clk 0:02:09]}  b5 {[%clk 0:01:24]} 31. Rc5 {[%clk 0:02:08]}  Rxc5 {[%clk 0:01:24]} 32. Bxc5 {[%clk 0:02:04]}  Ra8 {[%clk 0:01:24]} 33. Ra1 {[%clk 0:02:03]}  h5 {[%clk 0:01:22]} 34. g3 {[%clk 0:02:03]}  Kh7 {[%clk 0:01:22]} 35. Kf2 {[%clk 0:02:02]}  Kg6 {[%clk 0:01:23]} 36. Bd4 {[%clk 0:02:03]}  Kf5 {[%clk 0:01:18]} 37. Bb2 {[%clk 0:02:01]}  Rc8 {[%clk 0:01:17]} 38. Rc1 {[%clk 0:02:01]}  Rc4 {[%clk 0:01:18]} 39. Rxc4 {[%clk 0:01:57]}  dxc4 {[%clk 0:01:13]} 40. Ke3 {[%clk 0:01:40]}  g6 {[%clk 0:01:08]} 41. Bc3 {[%clk 0:01:37]}  Bc6 {[%clk 0:01:07]} 42. Be1 {[%clk 0:01:36]}  Kg4 {[%clk 0:01:05]} 43. Kf2 {[%clk 0:01:21]}  h4 {[%clk 0:01:02]} 44. gxh4 {[%clk 0:01:21]}  Kxf4 {[%clk 0:01:02]} 45. Bc3 {[%clk 0:01:22]}  Ke4 {[%clk 0:00:56]} 46. Ke2 {[%clk 0:01:22]}  Kf4 {[%clk 0:00:47]} 47. Bd4 {[%clk 0:01:21]}  Be4 {[%clk 0:00:41]} 48. Kd2 {[%clk 0:01:11]}  Kg3 {[%clk 0:00:39]} 49. e6 {[%clk 0:01:08]}  fxe6 {[%clk 0:00:38]} 50. Bf6 {[%clk 0:01:08]}  Kf4 {[%clk 0:00:30]} 51. Bg5+ {[%clk 0:01:07]}  Kf3 {[%clk 0:00:30]} 52. Bf6 {[%clk 0:01:06]}  Bc6 {[%clk 0:00:28]} 53. Be5 {[%clk 0:01:03]}  Ke4 {[%clk 0:00:28]} 54. Bf6 {[%clk 0:01:03]}  e5 {[%clk 0:00:27]} 55. Bg5 {[%clk 0:01:02]}  Kf3 {[%clk 0:00:26]} 56. Bf6 {[%clk 0:01:00]}  e4 {[%clk 0:00:27]} 57. Bg5 {[%clk 0:01:00]}  Bd7 {[%clk 0:00:21]} 58. Bh6 {[%clk 0:00:59]}  Bf5 {[%clk 0:00:22]} 59. Bg5 {[%clk 0:00:59]}  e3+ {[%clk 0:00:21]} 60. Ke1 {[%clk 0:00:56]}  c3 {[%clk 0:00:21]} 61. Bf6 {[%clk 0:00:55]}  c2 {[%clk 0:00:18]} 62. Bb2 {[%clk 0:00:54]}  Bd3 {[%clk 0:00:19]} 63. Bc1 {[%clk 0:00:54]}  Ke4 {[%clk 0:00:16]} 64. Bb2 {[%clk 0:00:50]}  Bc4 {[%clk 0:00:17]} 65. Bc1 {[%clk 0:00:50]}  Kd3 {[%clk 0:00:16]} 66. Bb2 {[%clk 0:00:50]}  Be6 {[%clk 0:00:17]} 67. Bc1 {[%clk 0:00:50]}  Bg4 {[%clk 0:00:13]} 68. Bb2 {[%clk 0:00:49]}  Bh5 {[%clk 0:00:13]} 69. Bc1 {[%clk 0:00:49]}  Kc3 {[%clk 0:00:13]} 70. Kf1 {[%clk 0:00:22]}  Kb3 {[%clk 0:00:12]} 71. Ke1 {[%clk 0:00:18]}  Ka2 {[%clk 0:00:12]} 72. Bxe3 {[%clk 0:00:19]}  Kb1 {[%clk 0:00:12]} 73. a4 {[%clk 0:00:16]}  bxa4 {[%clk 0:00:11]} 74. b5 {[%clk 0:00:16]}  c1=Q+ {[%clk 0:00:10]} 75. Bxc1 {[%clk 0:00:15]}  Kxc1 {[%clk 0:00:11]} 76. b6 {[%clk 0:00:16]}  a3 {[%clk 0:00:11]} 77. Kf2 {[%clk 0:00:17]}  a2 {[%clk 0:00:12]} 78. Kg3 {[%clk 0:00:18]}  a1=Q {[%clk 0:00:12]} 79. Kf4 {[%clk 0:00:19]}  Qd4+ {[%clk 0:00:11]} 80. Kg5 {[%clk 0:00:19]}  Qg4+ {[%clk 0:00:11]} 81. Kh6 {[%clk 0:00:20]}  Qxh4 {[%clk 0:00:11]} 82. Kg7 {[%clk 0:00:21]}  Qf4 {[%clk 0:00:11]} 83. Kh7 {[%clk 0:00:21]}  g5 {[%clk 0:00:11]} 84. Kh6 {[%clk 0:00:22]}  g4+ {[%clk 0:00:11]} 85. Kxh5 {[%clk 0:00:23]}  g3 {[%clk 0:00:11]} 86. Kg6 {[%clk 0:00:23]}  g2 {[%clk 0:00:11]} 87. Kh7 {[%clk 0:00:24]}  g1=Q {[%clk 0:00:10]} 88. Kh8 {[%clk 0:00:24]}  Qfh2# {[%clk 0:00:09]} 0-1


[Site "https://www.chess.com"]

[Event "Titled Tuesday Blitz July 11 Early 2023"]
[White "Demin, Vladimir"]
[Black "Tregubov, Pavel V."]
[WhiteFideId "4167457"]
[BlackFideId "4115341"]
[WhiteElo "2532"]
[BlackElo "2658"]
[Result "1-0"]
[Round "11"]
[TimeControl "180+2"]
[Date "2023.07.11"]
[WhiteClock "0:00:05"]
[BlackClock "0:00:00"]
[Board "60"]

1. d4 {[%clk 0:02:58]}  Nf6 {[%clk 0:02:59]} 2. Nc3 {[%clk 0:02:57]}  d5 {[%clk 0:02:58]} 3. Bf4 {[%clk 0:02:56]}  c6 {[%clk 0:02:57]} 4. e3 {[%clk 0:02:53]}  Bf5 {[%clk 0:02:51]} 5. f3 {[%clk 0:02:49]}  h6 {[%clk 0:02:50]} 6. g4 {[%clk 0:02:45]}  Bg6 {[%clk 0:02:45]} 7. h4 {[%clk 0:02:45]}  e6 {[%clk 0:02:43]} 8. Bd3 {[%clk 0:02:44]}  Bxd3 {[%clk 0:02:40]} 9. Qxd3 {[%clk 0:02:45]}  c5 {[%clk 0:02:36]} 10. dxc5 {[%clk 0:02:32]}  Nc6 {[%clk 0:02:36]} 11. Qb5 {[%clk 0:02:25]}  Qd7 {[%clk 0:02:28]} 12. O-O-O {[%clk 0:02:12]}  a6 {[%clk 0:02:21]} 13. Qb6 {[%clk 0:02:12]}  Be7 {[%clk 0:02:18]} 14. Nge2 {[%clk 0:02:09]}  Bd8 {[%clk 0:02:14]} 15. Qb3 {[%clk 0:02:09]}  Be7 {[%clk 0:02:07]} 16. Qb6 {[%clk 0:01:54]}  Bd8 {[%clk 0:01:54]} 17. Qb3 {[%clk 0:01:53]}  Rc8 {[%clk 0:01:46]} 18. e4 {[%clk 0:01:39]}  Na5 {[%clk 0:01:24]} 19. Qb4 {[%clk 0:01:36]}  Nc6 {[%clk 0:01:18]} 20. Qa3 {[%clk 0:01:24]}  Be7 {[%clk 0:01:18]} 21. Be3 {[%clk 0:01:13]}  Ne5 {[%clk 0:01:09]} 22. Qa4 {[%clk 0:00:58]}  Qxa4 {[%clk 0:01:05]} 23. Nxa4 {[%clk 0:00:59]}  Nxf3 {[%clk 0:01:05]} 24. exd5 {[%clk 0:00:57]}  Nxd5 {[%clk 0:01:03]} 25. Bf2 {[%clk 0:00:53]}  Ne5 {[%clk 0:00:55]} 26. Bd4 {[%clk 0:00:49]}  Nxg4 {[%clk 0:00:53]} 27. Rdg1 {[%clk 0:00:48]}  h5 {[%clk 0:00:49]} 28. Bxg7 {[%clk 0:00:47]}  Rg8 {[%clk 0:00:46]} 29. Bd4 {[%clk 0:00:46]}  Rg6 {[%clk 0:00:39]} 30. c4 {[%clk 0:00:43]}  b5 {[%clk 0:00:27]} 31. cxd5 {[%clk 0:00:40]}  bxa4 {[%clk 0:00:28]} 32. Nf4 {[%clk 0:00:38]}  Bxc5 {[%clk 0:00:26]} 33. Bxc5 {[%clk 0:00:36]}  Rxc5+ {[%clk 0:00:26]} 34. Kb1 {[%clk 0:00:37]}  Nf2 {[%clk 0:00:20]} 35. dxe6 {[%clk 0:00:32]}  Nxh1 {[%clk 0:00:17]} 36. exf7+ {[%clk 0:00:30]}  Kxf7 {[%clk 0:00:17]} 37. Nxg6 {[%clk 0:00:28]}  Nf2 {[%clk 0:00:15]} 38. Nf4 {[%clk 0:00:27]}  Rf5 {[%clk 0:00:13]} 39. Ne2 {[%clk 0:00:27]}  Ng4 {[%clk 0:00:13]} 40. Ng3 {[%clk 0:00:27]}  Rf2 {[%clk 0:00:11]} 41. Nxh5 {[%clk 0:00:26]}  Ne3 {[%clk 0:00:11]} 42. Ng3 {[%clk 0:00:23]}  Nc4 {[%clk 0:00:11]} 43. Ka1 {[%clk 0:00:21]}  Rxb2 {[%clk 0:00:07]} 44. h5 {[%clk 0:00:15]}  Rh2 {[%clk 0:00:07]} 45. Rc1 {[%clk 0:00:14]}  Ne5 {[%clk 0:00:04]} 46. Re1 {[%clk 0:00:11]}  Ke6 {[%clk 0:00:04]} 47. Ne2 {[%clk 0:00:08]}  Kf5 {[%clk 0:00:02]} 48. Nd4+ {[%clk 0:00:08]}  Kf6 {[%clk 0:00:03]} 49. Kb1 {[%clk 0:00:05]}  a3 {[%clk 0:00:02]} 50. Rf1+ {[%clk 0:00:05]}  Ke7 {[%clk 0:00:02]} 51. Nf5+ {[%clk 0:00:05]}  Kd7 {[%clk 0:00:02]} 52. h6 {[%clk 0:00:06]}  Ke6 {[%clk 0:00:00]} 53. Ka1 {[%clk 0:00:05]} 1-0


[Site "https://www.chess.com"]

[Event "Titled Tuesday Blitz July 11 Early 2023"]
[White "Keleberda, Tymur"]
[Black "HamedWafa4"]
[WhiteFideId "14174294"]
[WhiteElo "2518"]
[BlackElo "2609"]
[Result "1-0"]
[Round "11"]
[TimeControl "180+2"]
[Date "2023.07.11"]
[WhiteClock "0:01:30"]
[BlackClock "0:01:13"]
[Board "62"]

1. e4 {[%clk 0:03:00]}  e5 {[%clk 0:02:59]} 2. Nf3 {[%clk 0:02:59]}  Nc6 {[%clk 0:02:59]} 3. Bc4 {[%clk 0:02:59]}  Nf6 {[%clk 0:02:58]} 4. d4 {[%clk 0:02:57]}  exd4 {[%clk 0:02:57]} 5. e5 {[%clk 0:02:58]}  d5 {[%clk 0:02:56]} 6. Bb5 {[%clk 0:02:58]}  Ne4 {[%clk 0:02:56]} 7. Nxd4 {[%clk 0:02:58]}  Bc5 {[%clk 0:02:56]} 8. Be3 {[%clk 0:02:55]}  Bd7 {[%clk 0:02:56]} 9. Bxc6 {[%clk 0:02:54]}  bxc6 {[%clk 0:02:55]} 10. Nd2 {[%clk 0:02:54]}  Nxd2 {[%clk 0:02:50]} 11. Qxd2 {[%clk 0:02:53]}  Bb6 {[%clk 0:02:51]} 12. Nb3 {[%clk 0:02:53]}  O-O {[%clk 0:02:46]} 13. O-O {[%clk 0:02:52]}  Re8 {[%clk 0:02:42]} 14. f4 {[%clk 0:02:52]}  f6 {[%clk 0:02:42]} 15. Qc3 {[%clk 0:02:50]}  fxe5 {[%clk 0:02:35]} 16. fxe5 {[%clk 0:02:50]}  Qg5 {[%clk 0:02:35]} 17. Nc5 {[%clk 0:02:37]}  Qxe5 {[%clk 0:02:18]} 18. Bd4 {[%clk 0:02:37]}  Bxc5 {[%clk 0:02:15]} 19. Qxc5 {[%clk 0:02:36]}  Qd6 {[%clk 0:02:14]} 20. Qc3 {[%clk 0:02:35]}  Qg6 {[%clk 0:02:12]} 21. Rf3 {[%clk 0:02:32]}  Re4 {[%clk 0:02:08]} 22. Raf1 {[%clk 0:02:27]}  Rae8 {[%clk 0:02:04]} 23. h3 {[%clk 0:02:12]}  Re2 {[%clk 0:02:03]} 24. Rg3 {[%clk 0:02:07]}  c5 {[%clk 0:01:30]} 25. Rxg6 {[%clk 0:01:55]}  cxd4 {[%clk 0:01:29]} 26. Qxc7 {[%clk 0:01:46]}  hxg6 {[%clk 0:01:21]} 27. Qxd7 {[%clk 0:01:46]}  R8e7 {[%clk 0:01:21]} 28. Qxd5+ {[%clk 0:01:46]}  Kh7 {[%clk 0:01:22]} 29. Rf8 {[%clk 0:01:39]}  Rxc2 {[%clk 0:01:20]} 30. Qg8+ {[%clk 0:01:35]}  Kh6 {[%clk 0:01:19]} 31. h4 {[%clk 0:01:32]}  Kh5 {[%clk 0:01:18]} 32. Qd5+ {[%clk 0:01:30]}  Kg4 {[%clk 0:01:15]} 33. Qf3+ {[%clk 0:01:29]}  Kxh4 {[%clk 0:01:14]} 34. Qf4+ {[%clk 0:01:29]}  Kh5 {[%clk 0:01:13]} 35. Rh8# {[%clk 0:01:30]} 1-0


[Site "https://www.chess.com"]

[Event "Titled Tuesday Blitz July 11 Early 2023"]
[White "Lehtosaari, Mauri"]
[Black "Shukhman, Anna"]
[WhiteFideId "501999"]
[BlackFideId "54180058"]
[WhiteElo "2513"]
[BlackElo "2588"]
[Result "0-1"]
[Round "11"]
[TimeControl "180+2"]
[Date "2023.07.11"]
[WhiteClock "0:00:00"]
[BlackClock "0:01:02"]
[Board "64"]

1. d4 {[%clk 0:03:00]}  Nf6 {[%clk 0:02:59]} 2. Nf3 {[%clk 0:03:01]}  g6 {[%clk 0:02:59]} 3. Bg5 {[%clk 0:03:00]}  Bg7 {[%clk 0:03:00]} 4. Nbd2 {[%clk 0:03:00]}  d5 {[%clk 0:02:59]} 5. e3 {[%clk 0:02:56]}  O-O {[%clk 0:02:59]} 6. Be2 {[%clk 0:02:54]}  c5 {[%clk 0:02:59]} 7. O-O {[%clk 0:02:54]}  Nc6 {[%clk 0:02:59]} 8. c3 {[%clk 0:02:47]}  b6 {[%clk 0:02:55]} 9. a4 {[%clk 0:02:44]}  Bf5 {[%clk 0:02:52]} 10. h3 {[%clk 0:02:40]}  Rc8 {[%clk 0:02:48]} 11. Ba6 {[%clk 0:02:38]}  Rc7 {[%clk 0:02:42]} 12. Bf4 {[%clk 0:02:34]}  Rd7 {[%clk 0:02:41]} 13. Bb5 {[%clk 0:02:34]}  Qc8 {[%clk 0:02:40]} 14. Ne5 {[%clk 0:02:13]}  Nxe5 {[%clk 0:02:39]} 15. Bxe5 {[%clk 0:02:14]}  Rdd8 {[%clk 0:02:36]} 16. Be2 {[%clk 0:01:43]}  Ne4 {[%clk 0:02:32]} 17. Bxg7 {[%clk 0:01:40]}  Kxg7 {[%clk 0:02:33]} 18. Bf3 {[%clk 0:01:35]}  h5 {[%clk 0:02:25]} 19. Bxe4 {[%clk 0:01:28]}  dxe4 {[%clk 0:02:23]} 20. Qe2 {[%clk 0:01:26]}  e5 {[%clk 0:02:15]} 21. dxc5 {[%clk 0:01:19]}  Qxc5 {[%clk 0:02:13]} 22. Rfd1 {[%clk 0:01:18]}  Rd3 {[%clk 0:02:08]} 23. a5 {[%clk 0:01:03]}  Rfd8 {[%clk 0:02:06]} 24. axb6 {[%clk 0:01:02]}  axb6 {[%clk 0:02:05]} 25. Nf1 {[%clk 0:00:50]}  Qb5 {[%clk 0:01:52]} 26. Qc2 {[%clk 0:00:48]}  Be6 {[%clk 0:01:50]} 27. b4 {[%clk 0:00:35]}  Qc4 {[%clk 0:01:48]} 28. Rdc1 {[%clk 0:00:34]}  g5 {[%clk 0:01:33]} 29. Ra7 {[%clk 0:00:27]}  h4 {[%clk 0:01:30]} 30. Rb7 {[%clk 0:00:16]}  Rc8 {[%clk 0:01:25]} 31. Qe2 {[%clk 0:00:12]}  Rxc3 {[%clk 0:01:22]} 32. Qxc4 {[%clk 0:00:12]}  R3xc4 {[%clk 0:01:21]} 33. Rxc4 {[%clk 0:00:12]}  Bxc4 {[%clk 0:01:15]} 34. Rxb6 {[%clk 0:00:08]}  Bd3 {[%clk 0:01:15]} 35. Nd2 {[%clk 0:00:07]}  Rc1+ {[%clk 0:01:12]} 36. Kh2 {[%clk 0:00:07]}  Rc2 {[%clk 0:01:13]} 37. Nb3 {[%clk 0:00:06]}  Rxf2 {[%clk 0:01:13]} 38. Kg1 {[%clk 0:00:06]}  Rb2 {[%clk 0:01:13]} 39. Nc5 {[%clk 0:00:06]}  Re2 {[%clk 0:01:11]} 40. Rb7 {[%clk 0:00:05]}  Rxe3 {[%clk 0:01:10]} 41. Ne6+ {[%clk 0:00:06]}  Kf6 {[%clk 0:01:10]} 42. Nd8 {[%clk 0:00:06]}  Re1+ {[%clk 0:01:08]} 43. Kh2 {[%clk 0:00:06]}  Bc4 {[%clk 0:01:08]} 44. Rc7 {[%clk 0:00:06]}  Be6 {[%clk 0:01:04]} 45. Nxe6 {[%clk 0:00:06]}  Kxe6 {[%clk 0:01:04]} 46. Rc6+ {[%clk 0:00:06]}  Kd5 {[%clk 0:01:03]} 47. Rc2 {[%clk 0:00:05]}  Rb1 {[%clk 0:01:02]} 48. Rf2 {[%clk 0:00:03]}  e3 {[%clk 0:01:01]} 49. Re2 {[%clk 0:00:00]}  Kd4 {[%clk 0:01:02]} 0-1


[Site "https://www.chess.com"]

[Event "Titled Tuesday Blitz July 11 Early 2023"]
[White "MateoReyes"]
[Black "Tologon tegin, Semetei"]
[BlackFideId "13800574"]
[WhiteElo "2507"]
[BlackElo "2580"]
[Result "0-1"]
[Round "11"]
[TimeControl "180+2"]
[Date "2023.07.11"]
[WhiteClock "0:01:37"]
[BlackClock "0:01:15"]
[Board "65"]

1. Nf3 {[%clk 0:03:00]}  g6 {[%clk 0:02:50]} 2. d4 {[%clk 0:03:00]}  Bg7 {[%clk 0:02:46]} 3. Bg5 {[%clk 0:02:58]}  c5 {[%clk 0:02:46]} 4. e3 {[%clk 0:02:58]}  cxd4 {[%clk 0:02:45]} 5. exd4 {[%clk 0:02:58]}  Nc6 {[%clk 0:02:46]} 6. c3 {[%clk 0:02:56]}  d5 {[%clk 0:02:44]} 7. h3 {[%clk 0:02:54]}  Bf5 {[%clk 0:02:43]} 8. Bd3 {[%clk 0:02:53]}  Bxd3 {[%clk 0:02:43]} 9. Qxd3 {[%clk 0:02:53]}  Nf6 {[%clk 0:02:43]} 10. Nbd2 {[%clk 0:02:51]}  Qb6 {[%clk 0:02:43]} 11. Rb1 {[%clk 0:02:48]}  O-O {[%clk 0:02:41]} 12. O-O {[%clk 0:02:47]}  e6 {[%clk 0:02:30]} 13. Rfe1 {[%clk 0:02:46]}  Qc7 {[%clk 0:02:27]} 14. Qe3 {[%clk 0:02:46]}  Rfe8 {[%clk 0:02:24]} 15. Bh6 {[%clk 0:02:45]}  Bh8 {[%clk 0:02:24]} 16. Qg5 {[%clk 0:02:44]}  b5 {[%clk 0:02:23]} 17. a3 {[%clk 0:02:43]}  a5 {[%clk 0:02:22]} 18. Ne5 {[%clk 0:02:42]}  Nxe5 {[%clk 0:02:17]} 19. dxe5 {[%clk 0:02:41]}  Nd7 {[%clk 0:02:17]} 20. f4 {[%clk 0:02:37]}  b4 {[%clk 0:02:17]} 21. axb4 {[%clk 0:02:34]}  axb4 {[%clk 0:02:18]} 22. Rbc1 {[%clk 0:02:34]}  bxc3 {[%clk 0:02:17]} 23. bxc3 {[%clk 0:02:30]}  Ra2 {[%clk 0:02:17]} 24. Nf3 {[%clk 0:02:29]}  Rb8 {[%clk 0:01:58]} 25. Rb1 {[%clk 0:02:16]}  Bg7 {[%clk 0:01:52]} 26. Qh4 {[%clk 0:02:12]}  Rxb1 {[%clk 0:01:24]} 27. Rxb1 {[%clk 0:02:10]}  Bxh6 {[%clk 0:01:25]} 28. Qxh6 {[%clk 0:02:09]}  Qxc3 {[%clk 0:01:25]} 29. Ng5 {[%clk 0:02:07]}  Nf8 {[%clk 0:01:25]} 30. Nxh7 {[%clk 0:01:52]}  Qc5+ {[%clk 0:01:24]} 31. Kh1 {[%clk 0:01:50]}  Nxh7 {[%clk 0:01:24]} 32. Rb8+ {[%clk 0:01:49]}  Nf8 {[%clk 0:01:24]} 33. f5 {[%clk 0:01:46]}  exf5 {[%clk 0:01:21]} 34. e6 {[%clk 0:01:46]}  Ra1+ {[%clk 0:01:20]} 35. Kh2 {[%clk 0:01:45]}  Qc7+ {[%clk 0:01:19]} 36. g3 {[%clk 0:01:37]}  Qc2+ {[%clk 0:01:15]} 0-1


[Site "https://www.chess.com"]

[Event "Titled Tuesday Blitz July 11 Early 2023"]
[White "AlivodicDario"]
[Black "Prestia, Paris"]
[BlackFideId "30925959"]
[WhiteElo "2505"]
[BlackElo "2579"]
[Result "1-0"]
[Round "11"]
[TimeControl "180+2"]
[Date "2023.07.11"]
[WhiteClock "0:01:27"]
[BlackClock "0:00:11"]
[Board "66"]

1. d4 {[%clk 0:03:00]}  Nf6 {[%clk 0:03:00]} 2. c4 {[%clk 0:03:01]}  g6 {[%clk 0:03:00]} 3. Nc3 {[%clk 0:03:01]}  Bg7 {[%clk 0:03:01]} 4. e4 {[%clk 0:03:01]}  O-O {[%clk 0:03:02]} 5. Nge2 {[%clk 0:03:02]}  d6 {[%clk 0:03:02]} 6. Ng3 {[%clk 0:03:03]}  c5 {[%clk 0:03:00]} 7. d5 {[%clk 0:03:03]}  Nbd7 {[%clk 0:03:00]} 8. Be2 {[%clk 0:03:03]}  a6 {[%clk 0:03:00]} 9. a4 {[%clk 0:02:59]}  e6 {[%clk 0:02:52]} 10. O-O {[%clk 0:02:56]}  exd5 {[%clk 0:02:52]} 11. exd5 {[%clk 0:02:57]}  Re8 {[%clk 0:02:51]} 12. Bf4 {[%clk 0:02:57]}  Ne5 {[%clk 0:02:49]} 13. Qd2 {[%clk 0:02:58]}  Qc7 {[%clk 0:02:41]} 14. Bh6 {[%clk 0:02:54]}  Bh8 {[%clk 0:02:40]} 15. f4 {[%clk 0:02:53]}  Neg4 {[%clk 0:02:38]} 16. f5 {[%clk 0:02:54]}  Nxh6 {[%clk 0:02:38]} 17. Qxh6 {[%clk 0:02:54]}  Bg7 {[%clk 0:02:38]} 18. Qg5 {[%clk 0:02:53]}  h6 {[%clk 0:02:38]} 19. Qd2 {[%clk 0:02:47]}  g5 {[%clk 0:02:39]} 20. Nh5 {[%clk 0:02:45]}  Nxh5 {[%clk 0:02:38]} 21. Bxh5 {[%clk 0:02:46]}  Bf6 {[%clk 0:02:37]} 22. Rae1 {[%clk 0:02:44]}  Bd7 {[%clk 0:02:36]} 23. Ne4 {[%clk 0:02:44]}  Kg7 {[%clk 0:02:28]} 24. Nxf6 {[%clk 0:02:40]}  Kxf6 {[%clk 0:02:29]} 25. Qc3+ {[%clk 0:02:40]}  Re5 {[%clk 0:02:29]} 26. Rxe5 {[%clk 0:02:37]}  dxe5 {[%clk 0:02:30]} 27. h4 {[%clk 0:02:37]}  Bxa4 {[%clk 0:02:19]} 28. Rf3 {[%clk 0:02:30]}  Bd1 {[%clk 0:02:12]} 29. hxg5+ {[%clk 0:02:27]}  hxg5 {[%clk 0:02:13]} 30. Rh3 {[%clk 0:02:27]}  g4 {[%clk 0:01:45]} 31. Rh4 {[%clk 0:02:07]}  Rh8 {[%clk 0:01:42]} 32. Qg3 {[%clk 0:02:04]}  Rg8 {[%clk 0:00:52]} 33. Bxg4 {[%clk 0:01:56]}  Bxg4 {[%clk 0:00:51]} 34. Rxg4 {[%clk 0:01:55]}  Rxg4 {[%clk 0:00:51]} 35. Qxg4 {[%clk 0:01:56]}  Qa5 {[%clk 0:00:52]} 36. d6 {[%clk 0:01:37]}  Qd2 {[%clk 0:00:49]} 37. Qh4+ {[%clk 0:01:26]}  Kxf5 {[%clk 0:00:49]} 38. d7 {[%clk 0:01:27]}  f6 {[%clk 0:00:22]} 39. Qf2+ {[%clk 0:01:26]}  Qxf2+ {[%clk 0:00:11]} 40. Kxf2 {[%clk 0:01:27]} 1-0


[Site "https://www.chess.com"]

[Event "Titled Tuesday Blitz July 11 Early 2023"]
[White "Romero Ruscalleda, Josep"]
[Black "Lana Rodriguez, David"]
[WhiteFideId "2231859"]
[BlackFideId "2270803"]
[WhiteElo "2429"]
[BlackElo "2579"]
[Result "0-1"]
[Round "11"]
[TimeControl "180+2"]
[Date "2023.07.11"]
[WhiteClock "0:01:33"]
[BlackClock "0:02:08"]
[Board "67"]

1. e4 {[%clk 0:03:00]}  c5 {[%clk 0:02:56]} 2. c3 {[%clk 0:03:00]}  Nc6 {[%clk 0:02:56]} 3. Nf3 {[%clk 0:02:59]}  d5 {[%clk 0:02:56]} 4. exd5 {[%clk 0:02:58]}  Qxd5 {[%clk 0:02:57]} 5. Na3 {[%clk 0:02:58]}  Bg4 {[%clk 0:02:57]} 6. Be2 {[%clk 0:02:58]}  Nf6 {[%clk 0:02:56]} 7. O-O {[%clk 0:02:57]}  e6 {[%clk 0:02:56]} 8. d4 {[%clk 0:02:57]}  cxd4 {[%clk 0:02:55]} 9. Nb5 {[%clk 0:02:58]}  Rc8 {[%clk 0:02:51]} 10. Nbxd4 {[%clk 0:02:56]}  Nxd4 {[%clk 0:02:50]} 11. Nxd4 {[%clk 0:02:55]}  Bxe2 {[%clk 0:02:49]} 12. Qxe2 {[%clk 0:02:55]}  Bd6 {[%clk 0:02:47]} 13. Rd1 {[%clk 0:02:50]}  Qe5 {[%clk 0:02:36]} 14. Qb5+ {[%clk 0:02:34]}  Qxb5 {[%clk 0:02:32]} 15. Nxb5 {[%clk 0:02:34]}  Bb8 {[%clk 0:02:33]} 16. Bg5 {[%clk 0:02:20]}  a6 {[%clk 0:02:32]} 17. Bxf6 {[%clk 0:02:15]}  gxf6 {[%clk 0:02:33]} 18. Nd6+ {[%clk 0:02:15]}  Bxd6 {[%clk 0:02:32]} 19. Rxd6 {[%clk 0:02:15]}  Ke7 {[%clk 0:02:32]} 20. Rad1 {[%clk 0:02:15]}  Rc7 {[%clk 0:02:33]} 21. Kf1 {[%clk 0:02:15]}  Rg8 {[%clk 0:02:33]} 22. g3 {[%clk 0:02:13]}  Rg5 {[%clk 0:02:34]} 23. f4 {[%clk 0:02:13]}  Rb5 {[%clk 0:02:32]} 24. R1d2 {[%clk 0:02:12]}  Rxb2 {[%clk 0:02:29]} 25. Rxe6+ {[%clk 0:02:09]}  fxe6 {[%clk 0:02:25]} 26. Rxb2 {[%clk 0:02:09]}  b5 {[%clk 0:02:25]} 27. Rb3 {[%clk 0:02:06]}  Rc4 {[%clk 0:02:25]} 28. Ra3 {[%clk 0:02:04]}  Rc6 {[%clk 0:02:19]} 29. Ke2 {[%clk 0:02:04]}  Kd6 {[%clk 0:02:19]} 30. Kd3 {[%clk 0:02:04]}  Kc5 {[%clk 0:02:20]} 31. Rb3 {[%clk 0:02:01]}  Rd6+ {[%clk 0:02:18]} 32. Kc2 {[%clk 0:02:01]}  a5 {[%clk 0:02:18]} 33. Rb1 {[%clk 0:02:01]}  Rc6 {[%clk 0:02:15]} 34. Re1 {[%clk 0:02:00]}  Kd5 {[%clk 0:02:16]} 35. Kd3 {[%clk 0:01:58]}  e5 {[%clk 0:02:16]} 36. fxe5 {[%clk 0:01:58]}  fxe5 {[%clk 0:02:17]} 37. Rf1 {[%clk 0:01:54]}  b4 {[%clk 0:02:14]} 38. cxb4 {[%clk 0:01:53]}  axb4 {[%clk 0:02:15]} 39. Rf7 {[%clk 0:01:53]}  Rc3+ {[%clk 0:02:14]} 40. Kd2 {[%clk 0:01:53]}  Ra3 {[%clk 0:02:14]} 41. Rd7+ {[%clk 0:01:47]}  Ke4 {[%clk 0:02:14]} 42. Rxh7 {[%clk 0:01:46]}  Rxa2+ {[%clk 0:02:14]} 43. Kc1 {[%clk 0:01:47]}  Kd3 {[%clk 0:02:13]} 44. Rd7+ {[%clk 0:01:43]}  Kc3 {[%clk 0:02:10]} 45. Rc7+ {[%clk 0:01:43]}  Kd3 {[%clk 0:02:10]} 46. Rd7+ {[%clk 0:01:43]}  Ke3 {[%clk 0:02:09]} 47. h4 {[%clk 0:01:40]}  e4 {[%clk 0:02:07]} 48. h5 {[%clk 0:01:40]}  Rh2 {[%clk 0:02:07]} 49. Rb7 {[%clk 0:01:39]}  Kf3 {[%clk 0:02:06]} 50. Rxb4 {[%clk 0:01:37]}  e3 {[%clk 0:02:07]} 51. Kd1 {[%clk 0:01:37]}  Rh1+ {[%clk 0:02:06]} 52. Kc2 {[%clk 0:01:37]}  e2 {[%clk 0:02:07]} 53. Rf4+ {[%clk 0:01:36]}  Kxg3 {[%clk 0:02:07]} 54. Re4 {[%clk 0:01:35]}  e1=Q {[%clk 0:02:07]} 55. Rxe1 {[%clk 0:01:33]}  Rxe1 {[%clk 0:02:08]} 0-1


[Site "https://www.chess.com"]